bitfinex-derivatives/quotes_SOLF0:USTF0_20250929
["timestamp","ask_amount","ask_price","bid_price","bid_amount"]
[1759112409793,4.2938,209.51,209.49,4.48]
[1759112410182,11.8427,209.57,209.49,5.87931856]
[1759112410385,11.8427,209.57,209.51,5.32350065]
[1759112410386,4.2927,209.57,209.51,5.32350065]
[1759112410587,4.2927,209.57,209.52,4.48]
[1759112411081,4.2922,209.59,209.52,5.32350065]
[1759112411281,4.2922,209.59,209.52,9.80350065]
[1759112411698,7.55,209.6,209.53,5.87931856]
[1759112411882,66.7478,209.66,209.51,116.38]
[1759112411883,7.55,209.64,209.56,4.48]
[1759112412083,7.55,209.64,209.56,122.27931856]
[1759112412691,7.55,209.64,209.57,4.51]
[1759112414588,7.55,209.64,209.56,117.79931856]
[1759112414589,1.39931856,209.63,209.56,120.91]
[1759112414792,7.55,209.62,209.56,4.51]
[1759112415590,11.8421,209.6,209.56,4.51]
[1759112415786,1.39931856,209.63,209.56,4.51]
[1759112415990,7.55,209.6,209.54,116.38]
[1759112417591,7.55,209.6,209.55,4.51]
[1759112417798,7.55,209.6,209.54,116.38]
[1759112418698,4.2927,209.57,209.55,4.51]
[1759112418994,66.7707,209.58,209.54,116.38]
[1759112419203,4.2925,209.57,209.51,4.51]
[1759112419394,4.2925,209.57,209.52,5.32350065]
[1759112419594,7.55,209.59,209.53,4.51]
[1759112419895,4.2929,209.56,209.53,4.51]
[1759112420399,4.2935,209.53,209.51,5.32350065]
[1759112420698,4.2935,209.53,209.51,4.51]
[1759112420890,4.2935,209.53,209.5,116.4]
[1759112421096,4.293,209.55,209.5,116.4]
[1759112421289,8.94931856,209.57,209.51,4.51]
[1759112421494,7.55,209.57,209.5,120.91]
[1759112421797,8.94931856,209.57,209.5,120.91]
[1759112421993,7.55,209.57,209.5,120.91]
[1759112422198,8.94931856,209.57,209.5,120.91]
[1759112422497,7.55,209.57,209.5,121.72350065]
[1759112422703,7.55,209.6,209.53,4.51]
[1759112422894,4.2926,209.57,209.53,4.51]
[1759112423094,1.39931856,209.59,209.53,4.51]
[1759112423399,7.55,209.57,209.51,5.32350065]
[1759112423701,8.94931856,209.57,209.51,4.51]
[1759112423994,9.12931856,209.56,209.5,116.62]
[1759112424196,9.12931856,209.56,209.5,121.12]
[1759112424398,7.73,209.56,209.5,4.5]
[1759112424794,4.2934,209.53,209.5,4.5]
[1759112424994,7.73,209.56,209.5,5.32350065]
[1759112425895,4.2935,209.53,209.49,121.24]
[1759112426197,4.2935,209.53,209.5,4.5]
[1759112426899,4.2935,209.53,209.49,5.32350065]
[1759112427104,4.2935,209.53,209.5,9.82350065]
[1759112427294,74.5007,209.58,209.51,4.5]
[1759112427604,75.3417,209.62,209.52,118.11931856]
[1759112427605,7.73,209.62,209.52,118.11931856]
[1759112427897,7.73,209.62,209.56,1.39931856]
[1759112428402,4.2921,209.6,209.55,5.32350065]
[1759112428595,4.2921,209.6,209.57,4.5]
[1759112429100,12.0215,209.62,209.56,4.5]
[1759112429302,12.0215,209.62,209.55,6.72281921]
[1759112429303,7.73,209.62,209.55,122.02350065]
[1759112429602,4.2923,209.59,209.56,4.5]
[1759112429800,9.12931856,209.61,209.55,5.32350065]
[1759112429999,4.2924,209.58,209.54,4.5]
[1759112430398,12.0224,209.58,209.54,4.5]
[1759112430602,4.2927,209.57,209.54,4.5]
[1759112430802,7.73,209.58,209.52,5.32350065]
[1759112431004,9.12931856,209.58,209.51,5.32350065]
[1759112431206,74.5041,209.57,209.51,5.32350065]
[1759112431505,1.39931856,209.61,209.53,5.32350065]
[1759112431706,7.73,209.6,209.53,5.32350065]
[1759112431905,7.73,209.6,209.53,1.39931856]
[1759112432104,7.73,209.6,209.53,6.72281921]
[1759112432307,9.12931856,209.6,209.53,5.32350065]
[1759112432601,9.12931856,209.6,209.52,9.82350065]
[1759112432795,74.4974,209.59,209.52,4.5]
[1759112433000,1.39931856,209.58,209.52,9.82350065]
[1759112433304,74.4974,209.59,209.5,5.32350065]
[1759112433305,1.39931856,209.55,209.5,5.32350065]
[1759112433606,1.39931856,209.55,209.51,4.5]
[1759112433908,7.73,209.55,209.51,4.5]
[1759112434303,4.2935,209.53,209.5,5.32350065]
[1759112434506,66.7815,209.55,209.5,5.32350065]
[1759112434801,4.2938,209.51,209.47,5.32350065]
[1759112435003,4.2938,209.51,209.48,9.82350065]
[1759112435201,4.2938,209.51,209.48,4.5]
[1759112435409,4.2938,209.51,209.48,9.82350065]
[1759112435609,4.2941,209.5,209.48,5.32350065]
[1759112435809,7.73,209.52,209.48,4.5]
[1759112437215,4.2934,209.53,209.48,14.38129152]
[1759112437512,4.2934,209.53,209.49,4.5]
[1759112437703,7.73,209.57,209.49,4.5]
[1759112437904,7.73,209.57,209.5,6.72281921]
[1759112438309,7.73,209.6,209.51,4.5]
[1759112438509,9.12931856,209.6,209.51,4.5]
[1759112438815,9.12931856,209.58,209.51,9.82350065]
[1759112439713,4.2928,209.56,209.51,9.82350065]
[1759112440216,12.0228,209.56,209.51,9.82350065]
[1759112442711,12.0228,209.56,209.52,4.5]
[1759112443911,4.2924,209.58,209.52,5.32350065]
[1759112444107,4.2924,209.58,209.55,4.5]
[1759112444914,66.7531,209.64,209.56,1.39931856]
[1759112444915,4.2919,209.61,209.56,1.39931856]
[1759112445115,12.0219,209.61,209.56,5.89931856]
[1759112446120,12.0219,209.61,209.57,4.5]
[1759112447016,4.2913,209.63,209.56,1.39931856]
[1759112447316,7.73,209.66,209.58,1.39931856]
[1759112447719,9.12931856,209.66,209.58,1.39931856]
[1759112448217,7.73,209.66,209.58,1.39931856]
[1759112449628,4.2913,209.64,209.58,1.39931856]
[1759112451031,7.73,209.66,209.62,5.89931856]
[1759112452733,7.73,209.68,209.62,5.89931856]
[1759112453728,0.91656702,209.69,209.62,5.89931856]
[1759112453729,7.73,209.66,209.62,5.89931856]
[1759112454831,0.91656702,209.69,209.63,4.5]
[1759112455030,8.85656702,209.69,209.64,5.89931856]
[1759112455232,5.20686702,209.69,209.64,5.89931856]
[1759112455537,7.94,209.68,209.64,5.89931856]
[1759112455737,7.94,209.68,209.64,4.5]
[1759112458138,7.94,209.68,209.63,1.39931856]
[1759112458328,0.91656702,209.69,209.66,4.5]
[1759112458731,4.2897,209.71,209.66,4.5]
[1759112458932,7.94,209.7,209.66,4.5]
[1759112459334,4.2897,209.71,209.65,1.39931856]
[1759112459539,4.2897,209.71,209.66,4.5]
[1759112459738,4.2897,209.71,209.65,1.39931856]
[1759112460240,1.39931856,209.78,209.67,1.39931856]
[1759112460439,1.39931856,209.78,209.69,1.39931856]
[1759112460440,7.94,209.77,209.69,1.39931856]
[1759112461338,12.2292,209.74,209.69,5.89931856]
[1759112462740,7.94,209.73,209.69,5.89931856]
[1759112464546,7.94,209.73,209.7,4.5]
[1759112465935,7.94,209.74,209.7,4.5]
[1759112466136,4.2887,209.76,209.72,4.5]
[1759112466137,12.2287,209.76,209.72,4.5]
[1759112467250,12.2287,209.76,209.71,1.39931856]
[1759112467440,7.94,209.76,209.72,4.5]
[1759112467637,7.94,209.76,209.71,1.39931856]
[1759112468346,12.2278,209.81,209.75,1.39931856]
[1759112470341,12.2278,209.81,209.74,4.5]
[1759112471249,12.2271,209.84,209.74,4.5]
[1759112471446,12.2271,209.84,209.74,55.96]
[1759112471640,12.2271,209.84,209.76,4.5]
[1759112473148,7.94,209.84,209.76,4.5]
[1759112473951,7.94,209.84,209.77,4.49]
[1759112475557,12.2272,209.84,209.77,4.49]
[1759112477860,7.94,209.84,209.77,4.49]
[1759112478959,4.2876,209.82,209.77,4.49]
[1759112479161,4.2876,209.82,209.76,118.89975544]
[1759112480160,12.017,209.84,209.77,4.49]
[1759112490858,12.017,209.84,209.77,65.73]
[1759112491367,12.017,209.84,209.77,4.49]
[1759112491960,12.017,209.84,209.77,65.63]
[1759112492265,12.017,209.84,209.77,120.85]
[1759112493671,12.017,209.84,209.77,125.1383]
[1759112494877,7.5,209.9,209.79,4.5]
[1759112495263,7.5,209.9,209.81,6.68037114]
[1759112496567,4.286,209.89,209.81,10.96797114]
[1759112497275,4.286,209.89,209.82,4.5]
[1759112498270,7.5,209.9,209.82,8.7873]
[1759112499465,7.5,209.98,209.85,4.5]
[1759112500375,4.2844,209.97,209.87,4.2862]
[1759112500674,7.5,209.96,209.88,42.98]
[1759112501769,7.5,209.96,209.88,47.266]
[1759112501969,7.5,209.96,209.88,109.266]
[1759112502369,4.2848,209.95,209.88,104.98]
[1759112502576,7.5,209.94,209.88,42.98]
[1759112503770,7.5,209.94,209.88,4.5]
[1759112503970,7.5,209.94,209.88,102.24]
[1759112511179,7.5,209.94,209.88,106.526]
[1759112511475,7.5,209.94,209.88,102.026]
[1759112511778,11.7844,209.97,209.89,4.5]
[1759112511974,7.5,209.97,209.9,4.2857]
[1759112512181,7.5,209.97,209.91,4.5]
[1759112515784,7.3,209.97,209.93,4.49]
[1759112515973,4.2843,209.98,209.93,4.49]
[1759112516179,7.3,209.97,209.93,113.43]
[1759112516374,7.3,209.97,209.94,4.49]
[1759112516781,7.3,209.97,209.93,108.94]
[1759112516977,7.3,210.0,209.94,4.49]
[1759112518388,7.3,209.98,209.94,4.49]
[1759112518877,11.5843,209.98,209.94,4.49]
[1759112519180,7.3,209.97,209.94,116.46]
[1759112519386,4.2843,209.98,209.94,116.46]
[1759112519587,7.3,209.97,209.94,116.46]
[1759112519791,7.3,209.97,209.94,130.83976364]
[1759112519988,11.5845,209.97,209.94,14.37976364]
[1759112520192,7.3,209.97,209.94,4.49]
[1759112520800,7.3,210.03,209.94,4.49]
[1759112521186,11.5837,210.01,209.94,4.49]
[1759112522189,7.3,210.01,209.96,4.49]
[1759112522394,7.3,210.08,209.99,4.49]
[1759112522599,7.3,210.08,210.01,4.49]
[1759112522788,7.3,210.08,210.02,116.54]
[1759112523290,7.3,210.15,210.04,4.49]
[1759112523691,7.3,210.15,210.05,116.56]
[1759112524188,7.3,210.15,210.06,121.21]
[1759112525292,7.3,210.15,210.08,4.49]
[1759112525589,7.3,210.2,210.11,4.49]
[1759112525790,7.3,210.2,210.12,116.68]
[1759112526797,7.3,210.2,210.13,4.49]
[1759112527191,66.5589,210.25,210.1,6.14402655]
[1759112527192,4.2799,210.19,210.1,8.45365541]
[1759112527396,7.3,210.18,210.11,116.72]
[1759112527696,7.3,210.18,210.12,4.49]
[1759112528491,7.3,210.18,210.13,99.72]
[1759112528998,11.5799,210.19,210.13,121.17]
[1759112529593,7.3,210.19,210.13,121.17]
[1759112530096,11.5801,210.18,210.14,4.49]
[1759112530798,7.3,210.17,210.14,4.49]
[1759112531091,7.3,210.15,210.08,2.18037114]
[1759112531293,66.5352,210.32,210.13,7.62]
[1759112531496,66.5209,210.37,210.13,7.62]
[1759112531497,66.5226,210.36,210.24,7.62]
[1759112531693,66.5226,210.36,210.25,117.26]
[1759112531894,4.2771,210.33,210.25,117.26]
[1759112532300,4.2771,210.33,210.27,1.3884153]
[1759112533294,12.0971,210.33,210.27,1.3884153]
[1759112535001,4.2765,210.36,210.3,7.9]
[1759112535603,4.2765,210.36,210.29,118.7684153]
[1759112535901,74.3399,210.37,210.26,7.9]
[1759112535902,7.82,210.33,210.27,14.5219793]
[1759112536102,7.82,210.33,210.29,7.9]
[1759112536401,7.82,210.33,210.3,36.28]
[1759112538204,7.82,210.33,210.29,7.9]
[1759112540116,12.0963,210.37,210.3,1.3884153]
[1759112540406,12.0963,210.37,210.29,125.16]
[1759112541109,4.2767,210.35,210.29,125.16]
[1759112541609,7.82,210.34,210.28,1.3884153]
[1759112541808,12.097,210.33,210.29,39.02]
[1759112541999,12.097,210.33,210.29,46.92]
[1759112542203,7.82,210.33,210.29,46.92]
[1759112543006,7.82,210.33,210.29,7.9]
[1759112549115,4.2772,210.32,210.27,14.53975157]
[1759112549310,12.2372,210.32,210.26,1.3884153]
[1759112549512,12.2372,210.32,210.26,34.6284153]
[1759112549815,12.2372,210.32,210.25,7.34]
[1759112550015,12.2372,210.32,210.26,106.14]
[1759112553107,12.2372,210.32,210.26,14.52043688]
[1759112553311,12.2372,210.32,210.25,1.3884153]
[1759112553512,12.2372,210.32,210.28,7.34]
[1759112554818,4.2772,210.32,210.27,21.4684153]
[1759112555115,12.2368,210.35,210.29,1.3884153]
[1759112555314,12.2368,210.35,210.3,7.34]
[1759112555621,12.2368,210.35,210.29,8.7284153]
[1759112556024,12.2368,210.35,210.29,52.28]
[1759112556319,12.2368,210.35,210.3,1.3884153]
[1759112556514,12.2368,210.35,210.31,7.34]
[1759112557421,7.96,210.34,210.31,7.34]
[1759112559120,4.2763,210.37,210.31,7.34]
[1759112559320,12.2363,210.37,210.33,7.34]
[1759112559729,4.2763,210.37,210.33,7.34]
[1759112559933,7.96,210.36,210.33,7.34]
[1759112560226,12.2363,210.37,210.3,125.4684153]
[1759112560422,12.2363,210.37,210.3,8.7284153]
[1759112560627,12.2363,210.37,210.3,125.5884153]
[1759112561031,4.2766,210.36,210.3,8.7284153]
[1759112561331,4.2766,210.36,210.3,125.5684153]
[1759112561825,4.2766,210.36,210.32,7.34]
[1759112562025,12.2366,210.36,210.31,116.82]
[1759112562429,7.96,210.41,210.34,1.3884153]
[1759112562630,7.96,210.41,210.35,7.34]
[1759112563431,4.276,210.38,210.35,7.34]
[1759112567337,7.96,210.37,210.34,7.34]
[1759112568037,12.2364,210.37,210.34,7.34]
[1759112568232,4.2764,210.37,210.32,1.3884153]
[1759112568438,4.2764,210.37,210.34,7.34]
[1759112569438,12.2358,210.39,210.33,86.72]
[1759112571143,7.96,210.38,210.35,7.34]
[1759112572445,12.2362,210.38,210.35,7.34]
[1759112572845,66.5053,210.42,210.35,7.34]
[1759112573049,7.96,210.41,210.35,7.34]
[1759112573750,7.8,210.4,210.33,3.89608629]
[1759112574043,7.8,210.4,210.3,44.7158197]
[1759112574044,7.8,210.4,210.32,3.89608629]
[1759112574448,7.8,210.4,210.33,3.89608629]
[1759112575348,9.1884153,210.4,210.34,3.89608629]
[1759112575553,7.8,210.4,210.34,3.89608629]
[1759112576451,7.8,210.4,210.36,3.89608629]
[1759112576650,12.0764,210.37,210.36,3.89608629]
[1759112580751,4.277,210.33,210.31,5.32350065]
[1759112580959,7.8,210.37,210.31,5.32350065]
[1759112581452,1.3884153,210.39,210.31,5.32350065]
[1759112581453,12.077,210.34,210.33,5.32350065]
[1759112581654,12.077,210.34,210.31,12.93350065]
[1759112582054,4.2771,210.33,210.31,12.93350065]
[1759112582661,12.0771,210.33,210.29,5.32350065]
[1759112582853,4.2771,210.33,210.3,5.32350065]
[1759112583051,7.8,210.35,210.32,5.32350065]
[1759112583355,7.8,210.37,210.31,7.61]
[1759112583549,74.3186,210.37,210.31,7.61]
[1759112583751,4.2773,210.32,210.29,14.32191595]
[1759112583955,12.0773,210.32,210.29,12.93350065]
[1759112585156,7.8,210.31,210.29,12.93350065]
[1759112585356,4.2773,210.32,210.29,5.32350065]
[1759112585559,12.0773,210.32,210.29,5.32350065]
[1759112585758,4.2775,210.31,210.29,12.93350065]
[1759112586065,7.8,210.31,210.26,19.48399496]
[1759112586253,7.8,210.31,210.25,5.55086065]
[1759112586453,7.8,210.31,210.25,0.22736]
[1759112586958,4.2784,210.27,210.25,0.22736]
[1759112587162,4.2784,210.27,210.25,7.83736]
[1759112587765,12.0778,210.29,210.25,13.16086065]
[1759112587967,7.8,210.36,210.28,7.61]
[1759112588164,7.8,210.36,210.3,5.28443593]
[1759112588357,9.1884153,210.37,210.3,12.89443593]
[1759112588756,4.2767,210.35,210.31,7.61]
[1759112588956,1.3884153,210.38,210.31,7.61]
[1759112589165,1.3884153,210.36,210.29,5.28443593]
[1759112590066,5.6650153,210.36,210.29,5.28443593]
[1759112590267,9.1884153,210.37,210.3,5.28443593]
[1759112591164,4.2768,210.35,210.3,5.28443593]
[1759112591371,12.0768,210.35,210.31,7.61]
[1759112591867,4.2768,210.35,210.31,7.61]
[1759112592170,11.747,210.34,210.3,12.91443593]
[1759112592969,11.747,210.34,210.3,7.63]
[1759112593171,11.747,210.34,210.3,5.28443593]
[1759112593671,11.747,210.34,210.31,7.63]
[1759112594971,7.47,210.33,210.29,12.91443593]
[1759112595268,7.47,210.33,210.3,7.63]
[1759112595473,11.747,210.34,210.3,12.91443593]
[1759112595769,11.747,210.34,210.29,121.82443593]
[1759112595970,11.747,210.34,210.3,7.63]
[1759112596671,11.747,210.34,210.31,7.63]
[1759112597371,4.277,210.34,210.31,12.91443593]
[1759112597561,4.277,210.34,210.32,7.63]
[1759112597765,11.7472,210.33,210.31,5.28443593]
[1759112598274,4.2772,210.33,210.31,12.91443593]
[1759112599975,4.2772,210.33,210.31,7.63]
[1759112600370,7.47,210.35,210.31,12.91443593]
[1759112600564,7.47,210.35,210.32,7.63]
[1759112601977,7.47,210.34,210.31,5.28443593]
[1759112602179,7.47,210.34,210.3,12.91443593]
[1759112602374,4.2768,210.35,210.3,79.31443593]
[1759112602680,7.47,210.33,210.3,12.91443593]
[1759112603381,7.47,210.38,210.31,7.63]
[1759112603568,7.47,210.43,210.32,69.63]
[1759112603880,7.47,210.43,210.36,5.28409046]
[1759112604073,11.7452,210.43,210.36,121.84409046]
[1759112604274,7.76,210.42,210.36,121.84409046]
[1759112604475,7.76,210.42,210.35,121.86409046]
[1759112605770,4.2758,210.39,210.35,121.86409046]
[1759112605973,12.0358,210.39,210.35,129.27409046]
[1759112606576,12.0358,210.39,210.36,7.41]
[1759112606777,7.76,210.38,210.35,121.82409046]
[1759112607370,7.76,210.38,210.35,116.54]
[1759112607776,7.76,210.38,210.35,123.93]
[1759112608276,7.76,210.38,210.36,7.41]
[1759112609283,7.76,210.41,210.36,7.41]
[1759112609486,7.76,210.42,210.35,129.21409046]
[1759112610385,7.76,210.38,210.35,123.93]
[1759112610783,4.2758,210.39,210.35,116.52]
[1759112610987,12.0358,210.39,210.36,7.41]
[1759112611687,12.0354,210.41,210.35,116.52]
[1759112612281,7.76,210.46,210.37,7.41]
[1759112612482,7.76,210.46,210.38,5.28409046]
[1759112612675,7.76,210.46,210.39,38.9]
[1759112612979,7.76,210.48,210.4,7.41]
[1759112613285,7.76,210.48,210.4,75.29]
[1759112613682,4.2745,210.46,210.4,75.29]
[1759112616686,4.2745,210.46,210.4,113.35]
[1759112617288,4.2745,210.46,210.41,7.41]
[1759112617489,4.2745,210.46,210.4,116.54]
[1759112617490,4.2745,210.46,210.4,7.41]
[1759112617791,4.2745,210.46,210.4,123.95]
[1759112618091,4.2745,210.46,210.41,7.41]
[1759112618290,4.2745,210.46,210.4,116.54]
[1759112618493,4.2741,210.48,210.41,7.41]
[1759112618693,7.76,210.57,210.46,5.28409046]
[1759112618901,9.92924412,210.57,210.48,7.41]
[1759112619085,12.0328,210.54,210.48,7.41]
[1759112620990,4.2732,210.52,210.48,7.41]
[1759112621391,12.0332,210.52,210.48,7.41]
[1759112621794,7.76,210.51,210.44,62.0]
[1759112621989,7.76,210.51,210.43,124.31]
[1759112622390,7.76,210.51,210.44,7.41]
[1759112622601,4.2738,210.5,210.44,7.41]
[1759112623095,66.4676,210.54,210.44,7.41]
[1759112623298,7.76,210.55,210.44,7.41]
[1759112623299,4.2732,210.53,210.44,7.41]
[1759112624499,4.2732,210.53,210.45,7.41]
[1759112625604,4.2734,210.51,210.45,7.41]
[1759112625900,4.2734,210.51,210.47,7.41]
[1759112626100,4.2734,210.51,210.46,116.8]
[1759112626500,4.2734,210.51,210.47,7.41]
[1759112626702,4.2734,210.51,210.44,7.41]
[1759112626904,4.2734,210.51,210.45,116.78]
[1759112627498,4.2729,210.54,210.46,7.41]
[1759112627900,66.4548,210.58,210.46,7.41]
[1759112628094,4.2726,210.55,210.46,11.6844]
[1759112628299,4.2726,210.55,210.47,7.41]
[1759112629612,4.2726,210.55,210.48,7.41]
[1759112631409,4.2726,210.55,210.49,116.7]
[1759112631607,4.2726,210.55,210.5,7.41]
[1759112631807,4.2726,210.55,210.51,7.41]
[1759112632009,4.2726,210.55,210.5,14.45120308]
[1759112632302,12.0326,210.55,210.51,7.41]
[1759112632909,66.4551,210.58,210.46,7.41]
[1759112632910,12.033,210.54,210.46,7.41]
[1759112633604,12.033,210.54,210.48,7.41]
[1759112634310,12.033,210.54,210.49,78.62]
[1759112634510,12.033,210.54,210.46,7.63]
[1759112635204,12.033,210.54,210.47,59.22]
[1759112635404,12.033,210.54,210.48,7.63]
[1759112635910,7.8,210.52,210.44,4.2748]
[1759112636113,7.8,210.52,210.45,117.83]
[1759112637113,7.8,210.52,210.46,7.63]
[1759112637413,4.273,210.53,210.46,7.63]
[1759112639014,7.8,210.52,210.46,7.63]
[1759112639209,7.8,210.52,210.44,104.01500812]
[1759112639210,4.273,210.53,210.47,116.58]
[1759112639415,12.073,210.53,210.47,116.58]
[1759112639908,4.2733,210.52,210.46,116.58]
[1759112640717,7.8,210.51,210.45,124.21]
[1759112640913,7.8,210.51,210.45,7.63]
[1759112643705,4.2725,210.56,210.47,2.16924412]
[1759112643906,4.2725,210.56,210.5,7.63]
[1759112644214,4.2725,210.56,210.52,7.63]
[1759112644617,12.0725,210.56,210.52,7.63]
[1759112645316,4.2725,210.56,210.52,7.63]
[1759112645514,7.8,210.55,210.52,7.63]
[1759112647013,4.2725,210.56,210.52,7.63]
[1759112647217,4.272,210.58,210.52,7.63]
[1759112649013,12.0717,210.6,210.52,7.63]
[1759112649917,12.0717,210.6,210.53,9.79924412]
[1759112650117,12.0717,210.6,210.54,7.63]
[1759112650316,7.8,210.66,210.54,3.92836672]
[1759112650618,7.8,210.64,210.55,7.63]
[1759112650818,4.2712,210.62,210.56,116.82]
[1759112653715,4.2712,210.62,210.57,116.78]
[1759112653917,4.2712,210.62,210.56,7.34]
[1759112654421,11.8612,210.62,210.58,7.34]
[1759112654919,11.8612,210.62,210.57,86.98]
[1759112655113,4.2712,210.62,210.57,86.98]
[1759112655308,4.2712,210.62,210.58,7.34]
[1759112655510,4.2712,210.62,210.57,86.98]
[1759112656209,4.2712,210.62,210.58,7.34]
[1759112656413,4.2712,210.62,210.57,90.90836672]
[1759112656617,4.2716,210.61,210.58,7.34]
[1759112657425,11.8609,210.64,210.57,94.32]
[1759112657616,7.59,210.64,210.57,94.32]
[1759112657811,7.59,210.64,210.58,1.38464324]
[1759112658624,4.2712,210.63,210.58,1.38464324]
[1759112658922,7.59,210.62,210.58,1.38464324]
[1759112659224,7.59,210.62,210.59,7.34]
[1759112661828,11.8613,210.62,210.59,7.34]
[1759112664025,4.2716,210.6,210.57,3.92836672]
[1759112664220,7.66,210.61,210.55,3.92836672]
[1759112664420,75.48884324,210.61,210.54,3.92836672]
[1759112664623,7.66,210.6,210.53,12.71300996]
[1759112665426,7.66,210.6,210.54,3.92836672]
[1759112665621,67.82884324,210.61,210.53,12.71300996]
[1759112665622,4.2723,210.57,210.53,12.71300996]
[1759112665821,7.66,210.56,210.53,12.71300996]
[1759112667829,7.66,210.56,210.53,129.25300996]
[1759112668725,67.83554324,210.59,210.53,3.92836672]
[1759112668931,7.66,210.54,210.53,3.92836672]
[1759112669132,7.66,210.54,210.51,120.44836672]
[1759112669425,7.66,210.54,210.51,127.84836672]
[1759112669624,7.66,210.54,210.52,3.92836672]
[1759112669930,4.2728,210.55,210.52,7.4]
[1759112670134,4.2728,210.55,210.52,11.32836672]
[1759112671034,11.9328,210.55,210.52,11.32836672]
[1759112671628,7.66,210.54,210.51,3.92836672]
[1759112671927,7.66,210.54,210.51,120.42836672]
[1759112672127,7.66,210.54,210.51,127.82836672]
[1759112672327,7.66,210.54,210.52,3.92836672]
[1759112673533,7.66,210.54,210.51,127.82836672]
[1759112674938,11.933,210.53,210.51,3.92836672]
[1759112675326,4.273,210.53,210.51,3.92836672]
[1759112675633,7.66,210.51,210.5,116.42]
[1759112675833,7.66,210.53,210.49,3.92836672]
[1759112676036,1.38464324,210.54,210.49,3.92836672]
[1759112676437,7.66,210.53,210.49,3.92836672]
[1759112676635,11.9336,210.5,210.49,3.92836672]
[1759112677337,11.9336,210.5,210.48,3.92836672]
[1759112677338,7.66,210.49,210.48,3.92836672]
[1759112677536,4.274,210.48,210.47,3.92836672]
[1759112677735,7.66,210.47,210.46,3.92836672]
[1759112678533,4.2744,210.46,210.45,3.92836672]
[1759112679138,4.2744,210.46,210.44,127.76836672]
[1759112679939,4.2744,210.46,210.44,120.36836672]
[1759112680142,7.66,210.45,210.44,3.92836672]
[1759112680436,11.9349,210.44,210.43,14.42893645]
[1759112680644,4.2749,210.44,210.43,3.92836672]
[1759112680942,4.2749,210.44,210.42,3.92836672]
[1759112681141,7.66,210.43,210.42,3.92836672]
[1759112681738,7.66,210.43,210.42,18.23258827]
[1759112682432,7.66,210.43,210.42,14.30422155]
[1759112682743,4.2749,210.44,210.41,126.88836672]
[1759112683137,11.9349,210.44,210.41,11.32836672]
[1759112683436,11.9352,210.43,210.4,3.92836672]
[1759112683640,11.9352,210.43,210.4,120.34836672]
[1759112683941,11.9352,210.43,210.4,3.92836672]
[1759112684140,1.38464324,210.46,210.4,3.92836672]
[1759112684141,4.2755,210.41,210.4,3.92836672]
[1759112684445,11.9355,210.41,210.39,3.92836672]
[1759112684946,11.9355,210.41,210.38,127.72836672]
[1759112685240,7.66,210.41,210.39,3.92836672]
[1759112685442,7.66,210.41,210.38,141.82153137]
[1759112687350,7.66,210.41,210.38,137.89316465]
[1759112687748,11.9355,210.42,210.39,7.4]